{"text_format":"3","workbook":"xlsx","n_sheets":2,"sheets":["Pelacak Penurunan Berat Badan","perhitungan"],"not_rendered":{"charts":1,"defined_names":7},"read":"whole","date_system":"1900"}

{"sheet":"Pelacak Penurunan Berat Badan","index":0,"n_rows":129,"n_cols":11,"rows_kept":129,"merged":[[0,5,0,9],[1,6,3,9]]}
[null,"BERAT SASARAN","TAMPILAN BAGAN",null,null," PENURUNAN BERAT BADAN KIMBERLY"]
[{"$nulls":6},"PELACAK   \n   \n "]
[null,{"v":72,"d":"72.0"},"MINGGUAN",{"$nulls":7}," "]
[]
[]
[{"$nulls":10}," "]
{"$rows_empty":18}
[null,"TANGGAL","BERAT"]
[null,"2012-11-30",{"v":76,"d":"76.0"}]
[null,"2012-12-07",{"v":76,"d":"76.0"}]
[null,"2012-12-14",77.6]
[null,"2012-12-21",76.5]
[null,"2012-12-28",76.1]
[null,"2013-01-04",{"v":74,"d":"74.0"}]
[null,"2013-01-11",{"v":73,"d":"73.0"}]
[null,"2013-01-18",{"v":72,"d":"72.0"}]
[null,"2013-01-25",{"v":72,"d":"72.0"}]
[null,"2013-02-01",{"v":73,"d":"73.0"}]
[null,"2013-02-08",{"v":74,"d":"74.0"}]
[null,"2013-02-15",{"v":75,"d":"75.0"}]
[null,"2013-02-22"]
[null,"2013-03-01"]
[null,"2013-03-08"]
[null,"2013-03-15"]
[null,"2013-03-22"]
[null,"2013-03-29"]
[null,"2013-04-05"]
[null,"2013-04-12"]
[null,"2013-04-19"]
[null,"2013-04-26"]
[null,"2013-05-03"]
[null,"2013-05-10"]
[null,"2013-05-17"]
[null,"2013-05-24"]
[null,"2013-05-31"]
[null,"2013-06-07"]
[null,"2013-06-14"]
[null,"2013-06-21"]
[null,"2013-06-28"]
[null,"2013-07-05"]
[null,"2013-07-12"]
[null,"2013-07-19"]
[null,"2013-07-26"]
[null,"2013-08-02"]
[null,"2013-08-09"]
[null,"2013-08-16"]
[null,"2013-08-23"]
[null,"2013-08-30"]
[null,"2013-09-06"]
[null,"2013-09-13"]
[null,"2013-09-20"]
[null,"2013-09-27"]
[null,"2013-10-04"]
[null,"2013-10-11"]
[null,"2013-10-18"]
[null,"2013-10-25"]
[null,"2013-11-01"]
[null,"2013-11-08"]
[null,"2013-11-15"]
[null,"2013-11-22"]
[null,"2013-11-29"]
[null,"2013-12-06"]
[null,"2013-12-13"]
[null,"2013-12-20"]
[null,"2013-12-27"]
[null,"2014-01-03"]
[null,"2014-01-10"]
[null,"2014-01-17"]
[null,"2014-01-24"]
[null,"2014-01-31"]
[null,"2014-02-07"]
[null,"2014-02-14"]
[null,"2014-02-21"]
[null,"2014-02-28"]
[null,"2014-03-07"]
[null,"2014-03-14"]
[null,"2014-03-21"]
[null,"2014-03-28"]
[null,"2014-04-04"]
[null,"2014-04-11"]
[null,"2014-04-18"]
[null,"2014-04-25"]
[null,"2014-05-02"]
[null,"2014-05-09"]
[null,"2014-05-16"]
[null,"2014-05-23"]
[null,"2014-05-30"]
[null,"2014-06-06"]
[null,"2014-06-13"]
[null,"2014-06-20"]
[null,"2014-06-27"]
[null,"2014-07-04"]
[null,"2014-07-11"]
[null,"2014-07-18"]
[null,"2014-07-25"]
[null,"2014-08-01"]
[null,"2014-08-08"]
[null,"2014-08-15"]
[null,"2014-08-22"]
[null,"2014-08-29"]
[null,"2014-09-05"]
[null,"2014-09-12"]
[null,"2014-09-19"]
[null,"2014-09-26"]
[null,"2014-10-03"]
[null,"2014-10-10"]
[null,"2014-10-17"]
[null,"2014-10-24"]
[null,"2014-10-31"]
[null,"2014-11-07"]
[null,"2014-11-14"]
[null,"2014-11-21"]

{"sheet":"perhitungan","index":1,"n_rows":108,"n_cols":17,"rows_kept":108,"hidden":true}
["*** Lembar tetap tersembunyi ***"]
[]
[{"$f":"COUNTIF(A5:A108,FALSE)","v":13},"Periode","Nilai",{"$nulls":3},{"$f":"COUNTIF(H5:H28,\">\"&0)","v":4},"Periode",null,"Nilai"]
[null,"Minggu",null,null,true,null,null,"Bulan","AKHIR BULAN"]
[{"$f":"IF(('Pelacak Penurunan Berat Badan'!C26=0)*('Pelacak Penurunan Berat Badan'!C25=0),TRUE)","v":false},{"$f":"IF(A5,0,IF('Pelacak Penurunan Berat Badan'!B26=0,'Pelacak Penurunan Berat Badan'!B25+5,'Pelacak Penurunan Berat Badan'!B26))","v":"2012-11-30"},{"$f":"'Pelacak Penurunan Berat Badan'!C26","v":76},{"$f":"MIN(ChartPeriods)","v":"2012-11-30"},{"$f":"IF($E$4,GoalWeight,NA())","v":72},null,null,{"$f":"DATE(YEAR(B5),MONTH(B5),1)","v":"2012-11-01"},{"$f":"EOMONTH(H5,0)","v":"2012-11-30"},{"$f":"IFERROR(AVERAGEIFS(WeightTable[BERAT],WeightTable[TANGGAL],\">=\"&H5,WeightTable[TANGGAL],\"<=\"&I5),NA())","v":76}]
[{"$f":"IF(('Pelacak Penurunan Berat Badan'!C27=0)*('Pelacak Penurunan Berat Badan'!C26=0),TRUE)","v":false},{"$f":"IF(A6,0,IF('Pelacak Penurunan Berat Badan'!B27=0,'Pelacak Penurunan Berat Badan'!B26+5,'Pelacak Penurunan Berat Badan'!B27))","v":"2012-12-07"},{"$f":"'Pelacak Penurunan Berat Badan'!C27","v":76},{"$f":"MAX(ChartPeriods)","v":"2013-02-22"},72,null,null,{"$f":"IF(I5+1>MAX($B:$B),NA(),I5+1)","v":"2012-12-01"},"2012-12-31",{"$f":"IFERROR(AVERAGEIFS(WeightTable[BERAT],WeightTable[TANGGAL],\">=\"&H6,WeightTable[TANGGAL],\"<=\"&I6),NA())","v":76.55}]
[{"$f":"IF(('Pelacak Penurunan Berat Badan'!C28=0)*('Pelacak Penurunan Berat Badan'!C27=0),TRUE)","v":false},{"$f":"IF(A7,0,IF('Pelacak Penurunan Berat Badan'!B28=0,'Pelacak Penurunan Berat Badan'!B27+5,'Pelacak Penurunan Berat Badan'!B28))","v":"2012-12-14"},{"$f":"'Pelacak Penurunan Berat Badan'!C28","v":77.6},{"$nulls":4},{"$f":"IF(I6+1>MAX($B:$B),NA(),I6+1)","v":"2013-01-01"},"2013-01-31",{"$f":"IFERROR(AVERAGEIFS(WeightTable[BERAT],WeightTable[TANGGAL],\">=\"&H7,WeightTable[TANGGAL],\"<=\"&I7),NA())","v":72.75}]
[{"$f":"IF(('Pelacak Penurunan Berat Badan'!C29=0)*('Pelacak Penurunan Berat Badan'!C28=0),TRUE)","v":false},{"$f":"IF(A8,0,IF('Pelacak Penurunan Berat Badan'!B29=0,'Pelacak Penurunan Berat Badan'!B28+5,'Pelacak Penurunan Berat Badan'!B29))","v":"2012-12-21"},{"$f":"'Pelacak Penurunan Berat Badan'!C29","v":76.5},{"$nulls":4},"2013-02-01","2013-02-28",{"$f":"IFERROR(AVERAGEIFS(WeightTable[BERAT],WeightTable[TANGGAL],\">=\"&H8,WeightTable[TANGGAL],\"<=\"&I8),NA())","v":74}]
[{"$f":"IF(('Pelacak Penurunan Berat Badan'!C30=0)*('Pelacak Penurunan Berat Badan'!C29=0),TRUE)","v":false},{"$f":"IF(A9,0,IF('Pelacak Penurunan Berat Badan'!B30=0,'Pelacak Penurunan Berat Badan'!B29+5,'Pelacak Penurunan Berat Badan'!B30))","v":"2012-12-28"},{"$f":"'Pelacak Penurunan Berat Badan'!C30","v":76.1},{"$nulls":4},{"$error":"#N/A"},{"$error":"#N/A"},{"$f":"IFERROR(AVERAGEIFS(WeightTable[BERAT],WeightTable[TANGGAL],\">=\"&H9,WeightTable[TANGGAL],\"<=\"&I9),NA())","v":{"$error":"#N/A"}}]
[{"$f":"IF(('Pelacak Penurunan Berat Badan'!C31=0)*('Pelacak Penurunan Berat Badan'!C30=0),TRUE)","v":false},{"$f":"IF(A10,0,IF('Pelacak Penurunan Berat Badan'!B31=0,'Pelacak Penurunan Berat Badan'!B30+5,'Pelacak Penurunan Berat Badan'!B31))","v":"2013-01-04"},{"$f":"'Pelacak Penurunan Berat Badan'!C31","v":74},{"$nulls":4},{"$error":"#N/A"},{"$error":"#N/A"},{"$f":"IFERROR(AVERAGEIFS(WeightTable[BERAT],WeightTable[TANGGAL],\">=\"&H10,WeightTable[TANGGAL],\"<=\"&I10),NA())","v":{"$error":"#N/A"}}]
[{"$f":"IF(('Pelacak Penurunan Berat Badan'!C32=0)*('Pelacak Penurunan Berat Badan'!C31=0),TRUE)","v":false},{"$f":"IF(A11,0,IF('Pelacak Penurunan Berat Badan'!B32=0,'Pelacak Penurunan Berat Badan'!B31+5,'Pelacak Penurunan Berat Badan'!B32))","v":"2013-01-11"},{"$f":"'Pelacak Penurunan Berat Badan'!C32","v":73},{"$nulls":4},{"$error":"#N/A"},{"$error":"#N/A"},{"$f":"IFERROR(AVERAGEIFS(WeightTable[BERAT],WeightTable[TANGGAL],\">=\"&H11,WeightTable[TANGGAL],\"<=\"&I11),NA())","v":{"$error":"#N/A"}},{"$nulls":6},{"$f":"MAX($B:$B)","v":"2013-02-22"}]
[{"$f":"IF(('Pelacak Penurunan Berat Badan'!C33=0)*('Pelacak Penurunan Berat Badan'!C32=0),TRUE)","v":false},{"$f":"IF(A12,0,IF('Pelacak Penurunan Berat Badan'!B33=0,'Pelacak Penurunan Berat Badan'!B32+5,'Pelacak Penurunan Berat Badan'!B33))","v":"2013-01-18"},{"$f":"'Pelacak Penurunan Berat Badan'!C33","v":72},{"$nulls":4},{"$error":"#N/A"},{"$error":"#N/A"},{"$f":"IFERROR(AVERAGEIFS(WeightTable[BERAT],WeightTable[TANGGAL],\">=\"&H12,WeightTable[TANGGAL],\"<=\"&I12),NA())","v":{"$error":"#N/A"}}]
[{"$f":"IF(('Pelacak Penurunan Berat Badan'!C34=0)*('Pelacak Penurunan Berat Badan'!C33=0),TRUE)","v":false},{"$f":"IF(A13,0,IF('Pelacak Penurunan Berat Badan'!B34=0,'Pelacak Penurunan Berat Badan'!B33+5,'Pelacak Penurunan Berat Badan'!B34))","v":"2013-01-25"},{"$f":"'Pelacak Penurunan Berat Badan'!C34","v":72},{"$nulls":4},{"$error":"#N/A"},{"$error":"#N/A"},{"$f":"IFERROR(AVERAGEIFS(WeightTable[BERAT],WeightTable[TANGGAL],\">=\"&H13,WeightTable[TANGGAL],\"<=\"&I13),NA())","v":{"$error":"#N/A"}}]
[{"$f":"IF(('Pelacak Penurunan Berat Badan'!C35=0)*('Pelacak Penurunan Berat Badan'!C34=0),TRUE)","v":false},{"$f":"IF(A14,0,IF('Pelacak Penurunan Berat Badan'!B35=0,'Pelacak Penurunan Berat Badan'!B34+5,'Pelacak Penurunan Berat Badan'!B35))","v":"2013-02-01"},{"$f":"'Pelacak Penurunan Berat Badan'!C35","v":73},{"$nulls":4},{"$error":"#N/A"},{"$error":"#N/A"},{"$f":"IFERROR(AVERAGEIFS(WeightTable[BERAT],WeightTable[TANGGAL],\">=\"&H14,WeightTable[TANGGAL],\"<=\"&I14),NA())","v":{"$error":"#N/A"}}]
[{"$f":"IF(('Pelacak Penurunan Berat Badan'!C36=0)*('Pelacak Penurunan Berat Badan'!C35=0),TRUE)","v":false},{"$f":"IF(A15,0,IF('Pelacak Penurunan Berat Badan'!B36=0,'Pelacak Penurunan Berat Badan'!B35+5,'Pelacak Penurunan Berat Badan'!B36))","v":"2013-02-08"},{"$f":"'Pelacak Penurunan Berat Badan'!C36","v":74},{"$nulls":4},{"$error":"#N/A"},{"$error":"#N/A"},{"$f":"IFERROR(AVERAGEIFS(WeightTable[BERAT],WeightTable[TANGGAL],\">=\"&H15,WeightTable[TANGGAL],\"<=\"&I15),NA())","v":{"$error":"#N/A"}}]
[{"$f":"IF(('Pelacak Penurunan Berat Badan'!C37=0)*('Pelacak Penurunan Berat Badan'!C36=0),TRUE)","v":false},{"$f":"IF(A16,0,IF('Pelacak Penurunan Berat Badan'!B37=0,'Pelacak Penurunan Berat Badan'!B36+5,'Pelacak Penurunan Berat Badan'!B37))","v":"2013-02-15"},{"$f":"'Pelacak Penurunan Berat Badan'!C37","v":75},{"$nulls":4},{"$error":"#N/A"},{"$error":"#N/A"},{"$f":"IFERROR(AVERAGEIFS(WeightTable[BERAT],WeightTable[TANGGAL],\">=\"&H16,WeightTable[TANGGAL],\"<=\"&I16),NA())","v":{"$error":"#N/A"}}]
[{"$f":"IF(('Pelacak Penurunan Berat Badan'!C38=0)*('Pelacak Penurunan Berat Badan'!C37=0),TRUE)","v":false},{"$f":"IF(A17,0,IF('Pelacak Penurunan Berat Badan'!B38=0,'Pelacak Penurunan Berat Badan'!B37+5,'Pelacak Penurunan Berat Badan'!B38))","v":"2013-02-22"},{"$f":"'Pelacak Penurunan Berat Badan'!C38","v":0},{"$nulls":4},{"$error":"#N/A"},{"$error":"#N/A"},{"$f":"IFERROR(AVERAGEIFS(WeightTable[BERAT],WeightTable[TANGGAL],\">=\"&H17,WeightTable[TANGGAL],\"<=\"&I17),NA())","v":{"$error":"#N/A"}}]
[{"$f":"IF(('Pelacak Penurunan Berat Badan'!C39=0)*('Pelacak Penurunan Berat Badan'!C38=0),TRUE)","v":true},{"$f":"IF(A18,0,IF('Pelacak Penurunan Berat Badan'!B39=0,'Pelacak Penurunan Berat Badan'!B38+5,'Pelacak Penurunan Berat Badan'!B39))","v":"00:00:00"},{"$f":"'Pelacak Penurunan Berat Badan'!C39","v":0},{"$nulls":4},{"$error":"#N/A"},{"$error":"#N/A"},{"$f":"IFERROR(AVERAGEIFS(WeightTable[BERAT],WeightTable[TANGGAL],\">=\"&H18,WeightTable[TANGGAL],\"<=\"&I18),NA())","v":{"$error":"#N/A"}}]
[{"$f":"IF(('Pelacak Penurunan Berat Badan'!C40=0)*('Pelacak Penurunan Berat Badan'!C39=0),TRUE)","v":true},{"$f":"IF(A19,0,IF('Pelacak Penurunan Berat Badan'!B40=0,'Pelacak Penurunan Berat Badan'!B39+5,'Pelacak Penurunan Berat Badan'!B40))","v":"00:00:00"},{"$f":"'Pelacak Penurunan Berat Badan'!C40","v":0},{"$nulls":4},{"$error":"#N/A"},{"$error":"#N/A"},{"$f":"IFERROR(AVERAGEIFS(WeightTable[BERAT],WeightTable[TANGGAL],\">=\"&H19,WeightTable[TANGGAL],\"<=\"&I19),NA())","v":{"$error":"#N/A"}}]
[{"$f":"IF(('Pelacak Penurunan Berat Badan'!C41=0)*('Pelacak Penurunan Berat Badan'!C40=0),TRUE)","v":true},{"$f":"IF(A20,0,IF('Pelacak Penurunan Berat Badan'!B41=0,'Pelacak Penurunan Berat Badan'!B40+5,'Pelacak Penurunan Berat Badan'!B41))","v":"00:00:00"},{"$f":"'Pelacak Penurunan Berat Badan'!C41","v":0},{"$nulls":4},{"$error":"#N/A"},{"$error":"#N/A"},{"$f":"IFERROR(AVERAGEIFS(WeightTable[BERAT],WeightTable[TANGGAL],\">=\"&H20,WeightTable[TANGGAL],\"<=\"&I20),NA())","v":{"$error":"#N/A"}}]
[{"$f":"IF(('Pelacak Penurunan Berat Badan'!C42=0)*('Pelacak Penurunan Berat Badan'!C41=0),TRUE)","v":true},{"$f":"IF(A21,0,IF('Pelacak Penurunan Berat Badan'!B42=0,'Pelacak Penurunan Berat Badan'!B41+5,'Pelacak Penurunan Berat Badan'!B42))","v":"00:00:00"},{"$f":"'Pelacak Penurunan Berat Badan'!C42","v":0},{"$nulls":4},{"$error":"#N/A"},{"$error":"#N/A"},{"$f":"IFERROR(AVERAGEIFS(WeightTable[BERAT],WeightTable[TANGGAL],\">=\"&H21,WeightTable[TANGGAL],\"<=\"&I21),NA())","v":{"$error":"#N/A"}}]
[{"$f":"IF(('Pelacak Penurunan Berat Badan'!C43=0)*('Pelacak Penurunan Berat Badan'!C42=0),TRUE)","v":true},{"$f":"IF(A22,0,IF('Pelacak Penurunan Berat Badan'!B43=0,'Pelacak Penurunan Berat Badan'!B42+5,'Pelacak Penurunan Berat Badan'!B43))","v":"00:00:00"},{"$f":"'Pelacak Penurunan Berat Badan'!C43","v":0},{"$nulls":4},{"$error":"#N/A"},{"$error":"#N/A"},{"$f":"IFERROR(AVERAGEIFS(WeightTable[BERAT],WeightTable[TANGGAL],\">=\"&H22,WeightTable[TANGGAL],\"<=\"&I22),NA())","v":{"$error":"#N/A"}}]
[{"$f":"IF(('Pelacak Penurunan Berat Badan'!C44=0)*('Pelacak Penurunan Berat Badan'!C43=0),TRUE)","v":true},{"$f":"IF(A23,0,IF('Pelacak Penurunan Berat Badan'!B44=0,'Pelacak Penurunan Berat Badan'!B43+5,'Pelacak Penurunan Berat Badan'!B44))","v":"00:00:00"},{"$f":"'Pelacak Penurunan Berat Badan'!C44","v":0},{"$nulls":4},{"$error":"#N/A"},{"$error":"#N/A"},{"$f":"IFERROR(AVERAGEIFS(WeightTable[BERAT],WeightTable[TANGGAL],\">=\"&H23,WeightTable[TANGGAL],\"<=\"&I23),NA())","v":{"$error":"#N/A"}}]
[{"$f":"IF(('Pelacak Penurunan Berat Badan'!C45=0)*('Pelacak Penurunan Berat Badan'!C44=0),TRUE)","v":true},{"$f":"IF(A24,0,IF('Pelacak Penurunan Berat Badan'!B45=0,'Pelacak Penurunan Berat Badan'!B44+5,'Pelacak Penurunan Berat Badan'!B45))","v":"00:00:00"},{"$f":"'Pelacak Penurunan Berat Badan'!C45","v":0},{"$nulls":4},{"$error":"#N/A"},{"$error":"#N/A"},{"$f":"IFERROR(AVERAGEIFS(WeightTable[BERAT],WeightTable[TANGGAL],\">=\"&H24,WeightTable[TANGGAL],\"<=\"&I24),NA())","v":{"$error":"#N/A"}}]
[{"$f":"IF(('Pelacak Penurunan Berat Badan'!C46=0)*('Pelacak Penurunan Berat Badan'!C45=0),TRUE)","v":true},{"$f":"IF(A25,0,IF('Pelacak Penurunan Berat Badan'!B46=0,'Pelacak Penurunan Berat Badan'!B45+5,'Pelacak Penurunan Berat Badan'!B46))","v":"00:00:00"},{"$f":"'Pelacak Penurunan Berat Badan'!C46","v":0},{"$nulls":4},{"$error":"#N/A"},{"$error":"#N/A"},{"$f":"IFERROR(AVERAGEIFS(WeightTable[BERAT],WeightTable[TANGGAL],\">=\"&H25,WeightTable[TANGGAL],\"<=\"&I25),NA())","v":{"$error":"#N/A"}}]
[{"$f":"IF(('Pelacak Penurunan Berat Badan'!C47=0)*('Pelacak Penurunan Berat Badan'!C46=0),TRUE)","v":true},{"$f":"IF(A26,0,IF('Pelacak Penurunan Berat Badan'!B47=0,'Pelacak Penurunan Berat Badan'!B46+5,'Pelacak Penurunan Berat Badan'!B47))","v":"00:00:00"},{"$f":"'Pelacak Penurunan Berat Badan'!C47","v":0},{"$nulls":4},{"$error":"#N/A"},{"$error":"#N/A"},{"$f":"IFERROR(AVERAGEIFS(WeightTable[BERAT],WeightTable[TANGGAL],\">=\"&H26,WeightTable[TANGGAL],\"<=\"&I26),NA())","v":{"$error":"#N/A"}}]
[{"$f":"IF(('Pelacak Penurunan Berat Badan'!C48=0)*('Pelacak Penurunan Berat Badan'!C47=0),TRUE)","v":true},{"$f":"IF(A27,0,IF('Pelacak Penurunan Berat Badan'!B48=0,'Pelacak Penurunan Berat Badan'!B47+5,'Pelacak Penurunan Berat Badan'!B48))","v":"00:00:00"},{"$f":"'Pelacak Penurunan Berat Badan'!C48","v":0},{"$nulls":4},{"$error":"#N/A"},{"$error":"#N/A"},{"$f":"IFERROR(AVERAGEIFS(WeightTable[BERAT],WeightTable[TANGGAL],\">=\"&H27,WeightTable[TANGGAL],\"<=\"&I27),NA())","v":{"$error":"#N/A"}}]
[{"$f":"IF(('Pelacak Penurunan Berat Badan'!C49=0)*('Pelacak Penurunan Berat Badan'!C48=0),TRUE)","v":true},{"$f":"IF(A28,0,IF('Pelacak Penurunan Berat Badan'!B49=0,'Pelacak Penurunan Berat Badan'!B48+5,'Pelacak Penurunan Berat Badan'!B49))","v":"00:00:00"},{"$f":"'Pelacak Penurunan Berat Badan'!C49","v":0},{"$nulls":4},{"$error":"#N/A"},{"$error":"#N/A"},{"$f":"IFERROR(AVERAGEIFS(WeightTable[BERAT],WeightTable[TANGGAL],\">=\"&H28,WeightTable[TANGGAL],\"<=\"&I28),NA())","v":{"$error":"#N/A"}}]
[{"$f":"IF(('Pelacak Penurunan Berat Badan'!C50=0)*('Pelacak Penurunan Berat Badan'!C49=0),TRUE)","v":true},{"$f":"IF(A29,0,IF('Pelacak Penurunan Berat Badan'!B50=0,'Pelacak Penurunan Berat Badan'!B49+5,'Pelacak Penurunan Berat Badan'!B50))","v":"00:00:00"},{"$f":"'Pelacak Penurunan Berat Badan'!C50","v":0}]
[{"$f":"IF(('Pelacak Penurunan Berat Badan'!C51=0)*('Pelacak Penurunan Berat Badan'!C50=0),TRUE)","v":true},{"$f":"IF(A30,0,IF('Pelacak Penurunan Berat Badan'!B51=0,'Pelacak Penurunan Berat Badan'!B50+5,'Pelacak Penurunan Berat Badan'!B51))","v":"00:00:00"},{"$f":"'Pelacak Penurunan Berat Badan'!C51","v":0}]
[{"$f":"IF(('Pelacak Penurunan Berat Badan'!C52=0)*('Pelacak Penurunan Berat Badan'!C51=0),TRUE)","v":true},{"$f":"IF(A31,0,IF('Pelacak Penurunan Berat Badan'!B52=0,'Pelacak Penurunan Berat Badan'!B51+5,'Pelacak Penurunan Berat Badan'!B52))","v":"00:00:00"},{"$f":"'Pelacak Penurunan Berat Badan'!C52","v":0}]
[{"$f":"IF(('Pelacak Penurunan Berat Badan'!C53=0)*('Pelacak Penurunan Berat Badan'!C52=0),TRUE)","v":true},{"$f":"IF(A32,0,IF('Pelacak Penurunan Berat Badan'!B53=0,'Pelacak Penurunan Berat Badan'!B52+5,'Pelacak Penurunan Berat Badan'!B53))","v":"00:00:00"},{"$f":"'Pelacak Penurunan Berat Badan'!C53","v":0}]
[{"$f":"IF(('Pelacak Penurunan Berat Badan'!C54=0)*('Pelacak Penurunan Berat Badan'!C53=0),TRUE)","v":true},{"$f":"IF(A33,0,IF('Pelacak Penurunan Berat Badan'!B54=0,'Pelacak Penurunan Berat Badan'!B53+5,'Pelacak Penurunan Berat Badan'!B54))","v":"00:00:00"},{"$f":"'Pelacak Penurunan Berat Badan'!C54","v":0}]
[{"$f":"IF(('Pelacak Penurunan Berat Badan'!C55=0)*('Pelacak Penurunan Berat Badan'!C54=0),TRUE)","v":true},{"$f":"IF(A34,0,IF('Pelacak Penurunan Berat Badan'!B55=0,'Pelacak Penurunan Berat Badan'!B54+5,'Pelacak Penurunan Berat Badan'!B55))","v":"00:00:00"},{"$f":"'Pelacak Penurunan Berat Badan'!C55","v":0}]
[{"$f":"IF(('Pelacak Penurunan Berat Badan'!C56=0)*('Pelacak Penurunan Berat Badan'!C55=0),TRUE)","v":true},{"$f":"IF(A35,0,IF('Pelacak Penurunan Berat Badan'!B56=0,'Pelacak Penurunan Berat Badan'!B55+5,'Pelacak Penurunan Berat Badan'!B56))","v":"00:00:00"},{"$f":"'Pelacak Penurunan Berat Badan'!C56","v":0}]
[{"$f":"IF(('Pelacak Penurunan Berat Badan'!C57=0)*('Pelacak Penurunan Berat Badan'!C56=0),TRUE)","v":true},{"$f":"IF(A36,0,IF('Pelacak Penurunan Berat Badan'!B57=0,'Pelacak Penurunan Berat Badan'!B56+5,'Pelacak Penurunan Berat Badan'!B57))","v":"00:00:00"},{"$f":"'Pelacak Penurunan Berat Badan'!C57","v":0}]
[{"$f":"IF(('Pelacak Penurunan Berat Badan'!C58=0)*('Pelacak Penurunan Berat Badan'!C57=0),TRUE)","v":true},{"$f":"IF(A37,0,IF('Pelacak Penurunan Berat Badan'!B58=0,'Pelacak Penurunan Berat Badan'!B57+5,'Pelacak Penurunan Berat Badan'!B58))","v":"00:00:00"},{"$f":"'Pelacak Penurunan Berat Badan'!C58","v":0}]
[{"$f":"IF(('Pelacak Penurunan Berat Badan'!C59=0)*('Pelacak Penurunan Berat Badan'!C58=0),TRUE)","v":true},{"$f":"IF(A38,0,IF('Pelacak Penurunan Berat Badan'!B59=0,'Pelacak Penurunan Berat Badan'!B58+5,'Pelacak Penurunan Berat Badan'!B59))","v":"00:00:00"},{"$f":"'Pelacak Penurunan Berat Badan'!C59","v":0}]
[{"$f":"IF(('Pelacak Penurunan Berat Badan'!C60=0)*('Pelacak Penurunan Berat Badan'!C59=0),TRUE)","v":true},{"$f":"IF(A39,0,IF('Pelacak Penurunan Berat Badan'!B60=0,'Pelacak Penurunan Berat Badan'!B59+5,'Pelacak Penurunan Berat Badan'!B60))","v":"00:00:00"},{"$f":"'Pelacak Penurunan Berat Badan'!C60","v":0}]
[{"$f":"IF(('Pelacak Penurunan Berat Badan'!C61=0)*('Pelacak Penurunan Berat Badan'!C60=0),TRUE)","v":true},{"$f":"IF(A40,0,IF('Pelacak Penurunan Berat Badan'!B61=0,'Pelacak Penurunan Berat Badan'!B60+5,'Pelacak Penurunan Berat Badan'!B61))","v":"00:00:00"},{"$f":"'Pelacak Penurunan Berat Badan'!C61","v":0}]
[{"$f":"IF(('Pelacak Penurunan Berat Badan'!C62=0)*('Pelacak Penurunan Berat Badan'!C61=0),TRUE)","v":true},{"$f":"IF(A41,0,IF('Pelacak Penurunan Berat Badan'!B62=0,'Pelacak Penurunan Berat Badan'!B61+5,'Pelacak Penurunan Berat Badan'!B62))","v":"00:00:00"},{"$f":"'Pelacak Penurunan Berat Badan'!C62","v":0}]
[{"$f":"IF(('Pelacak Penurunan Berat Badan'!C63=0)*('Pelacak Penurunan Berat Badan'!C62=0),TRUE)","v":true},{"$f":"IF(A42,0,IF('Pelacak Penurunan Berat Badan'!B63=0,'Pelacak Penurunan Berat Badan'!B62+5,'Pelacak Penurunan Berat Badan'!B63))","v":"00:00:00"},{"$f":"'Pelacak Penurunan Berat Badan'!C63","v":0}]
[{"$f":"IF(('Pelacak Penurunan Berat Badan'!C64=0)*('Pelacak Penurunan Berat Badan'!C63=0),TRUE)","v":true},{"$f":"IF(A43,0,IF('Pelacak Penurunan Berat Badan'!B64=0,'Pelacak Penurunan Berat Badan'!B63+5,'Pelacak Penurunan Berat Badan'!B64))","v":"00:00:00"},{"$f":"'Pelacak Penurunan Berat Badan'!C64","v":0}]
[{"$f":"IF(('Pelacak Penurunan Berat Badan'!C65=0)*('Pelacak Penurunan Berat Badan'!C64=0),TRUE)","v":true},{"$f":"IF(A44,0,IF('Pelacak Penurunan Berat Badan'!B65=0,'Pelacak Penurunan Berat Badan'!B64+5,'Pelacak Penurunan Berat Badan'!B65))","v":"00:00:00"},{"$f":"'Pelacak Penurunan Berat Badan'!C65","v":0}]
[{"$f":"IF(('Pelacak Penurunan Berat Badan'!C66=0)*('Pelacak Penurunan Berat Badan'!C65=0),TRUE)","v":true},{"$f":"IF(A45,0,IF('Pelacak Penurunan Berat Badan'!B66=0,'Pelacak Penurunan Berat Badan'!B65+5,'Pelacak Penurunan Berat Badan'!B66))","v":"00:00:00"},{"$f":"'Pelacak Penurunan Berat Badan'!C66","v":0}]
[{"$f":"IF(('Pelacak Penurunan Berat Badan'!C67=0)*('Pelacak Penurunan Berat Badan'!C66=0),TRUE)","v":true},{"$f":"IF(A46,0,IF('Pelacak Penurunan Berat Badan'!B67=0,'Pelacak Penurunan Berat Badan'!B66+5,'Pelacak Penurunan Berat Badan'!B67))","v":"00:00:00"},{"$f":"'Pelacak Penurunan Berat Badan'!C67","v":0}]
[{"$f":"IF(('Pelacak Penurunan Berat Badan'!C68=0)*('Pelacak Penurunan Berat Badan'!C67=0),TRUE)","v":true},{"$f":"IF(A47,0,IF('Pelacak Penurunan Berat Badan'!B68=0,'Pelacak Penurunan Berat Badan'!B67+5,'Pelacak Penurunan Berat Badan'!B68))","v":"00:00:00"},{"$f":"'Pelacak Penurunan Berat Badan'!C68","v":0}]
[{"$f":"IF(('Pelacak Penurunan Berat Badan'!C69=0)*('Pelacak Penurunan Berat Badan'!C68=0),TRUE)","v":true},{"$f":"IF(A48,0,IF('Pelacak Penurunan Berat Badan'!B69=0,'Pelacak Penurunan Berat Badan'!B68+5,'Pelacak Penurunan Berat Badan'!B69))","v":"00:00:00"},{"$f":"'Pelacak Penurunan Berat Badan'!C69","v":0}]
[{"$f":"IF(('Pelacak Penurunan Berat Badan'!C70=0)*('Pelacak Penurunan Berat Badan'!C69=0),TRUE)","v":true},{"$f":"IF(A49,0,IF('Pelacak Penurunan Berat Badan'!B70=0,'Pelacak Penurunan Berat Badan'!B69+5,'Pelacak Penurunan Berat Badan'!B70))","v":"00:00:00"},{"$f":"'Pelacak Penurunan Berat Badan'!C70","v":0}]
[{"$f":"IF(('Pelacak Penurunan Berat Badan'!C71=0)*('Pelacak Penurunan Berat Badan'!C70=0),TRUE)","v":true},{"$f":"IF(A50,0,IF('Pelacak Penurunan Berat Badan'!B71=0,'Pelacak Penurunan Berat Badan'!B70+5,'Pelacak Penurunan Berat Badan'!B71))","v":"00:00:00"},{"$f":"'Pelacak Penurunan Berat Badan'!C71","v":0}]
[{"$f":"IF(('Pelacak Penurunan Berat Badan'!C72=0)*('Pelacak Penurunan Berat Badan'!C71=0),TRUE)","v":true},{"$f":"IF(A51,0,IF('Pelacak Penurunan Berat Badan'!B72=0,'Pelacak Penurunan Berat Badan'!B71+5,'Pelacak Penurunan Berat Badan'!B72))","v":"00:00:00"},{"$f":"'Pelacak Penurunan Berat Badan'!C72","v":0}]
[{"$f":"IF(('Pelacak Penurunan Berat Badan'!C73=0)*('Pelacak Penurunan Berat Badan'!C72=0),TRUE)","v":true},{"$f":"IF(A52,0,IF('Pelacak Penurunan Berat Badan'!B73=0,'Pelacak Penurunan Berat Badan'!B72+5,'Pelacak Penurunan Berat Badan'!B73))","v":"00:00:00"},{"$f":"'Pelacak Penurunan Berat Badan'!C73","v":0}]
[{"$f":"IF(('Pelacak Penurunan Berat Badan'!C74=0)*('Pelacak Penurunan Berat Badan'!C73=0),TRUE)","v":true},{"$f":"IF(A53,0,IF('Pelacak Penurunan Berat Badan'!B74=0,'Pelacak Penurunan Berat Badan'!B73+5,'Pelacak Penurunan Berat Badan'!B74))","v":"00:00:00"},{"$f":"'Pelacak Penurunan Berat Badan'!C74","v":0}]
[{"$f":"IF(('Pelacak Penurunan Berat Badan'!C75=0)*('Pelacak Penurunan Berat Badan'!C74=0),TRUE)","v":true},{"$f":"IF(A54,0,IF('Pelacak Penurunan Berat Badan'!B75=0,'Pelacak Penurunan Berat Badan'!B74+5,'Pelacak Penurunan Berat Badan'!B75))","v":"00:00:00"},{"$f":"'Pelacak Penurunan Berat Badan'!C75","v":0}]
[{"$f":"IF(('Pelacak Penurunan Berat Badan'!C76=0)*('Pelacak Penurunan Berat Badan'!C75=0),TRUE)","v":true},{"$f":"IF(A55,0,IF('Pelacak Penurunan Berat Badan'!B76=0,'Pelacak Penurunan Berat Badan'!B75+5,'Pelacak Penurunan Berat Badan'!B76))","v":"00:00:00"},{"$f":"'Pelacak Penurunan Berat Badan'!C76","v":0}]
[{"$f":"IF(('Pelacak Penurunan Berat Badan'!C77=0)*('Pelacak Penurunan Berat Badan'!C76=0),TRUE)","v":true},{"$f":"IF(A56,0,IF('Pelacak Penurunan Berat Badan'!B77=0,'Pelacak Penurunan Berat Badan'!B76+5,'Pelacak Penurunan Berat Badan'!B77))","v":"00:00:00"},{"$f":"'Pelacak Penurunan Berat Badan'!C77","v":0}]
[{"$f":"IF(('Pelacak Penurunan Berat Badan'!C78=0)*('Pelacak Penurunan Berat Badan'!C77=0),TRUE)","v":true},{"$f":"IF(A57,0,IF('Pelacak Penurunan Berat Badan'!B78=0,'Pelacak Penurunan Berat Badan'!B77+5,'Pelacak Penurunan Berat Badan'!B78))","v":"00:00:00"},{"$f":"'Pelacak Penurunan Berat Badan'!C78","v":0}]
[{"$f":"IF(('Pelacak Penurunan Berat Badan'!C79=0)*('Pelacak Penurunan Berat Badan'!C78=0),TRUE)","v":true},{"$f":"IF(A58,0,IF('Pelacak Penurunan Berat Badan'!B79=0,'Pelacak Penurunan Berat Badan'!B78+5,'Pelacak Penurunan Berat Badan'!B79))","v":"00:00:00"},{"$f":"'Pelacak Penurunan Berat Badan'!C79","v":0}]
[{"$f":"IF(('Pelacak Penurunan Berat Badan'!C80=0)*('Pelacak Penurunan Berat Badan'!C79=0),TRUE)","v":true},{"$f":"IF(A59,0,IF('Pelacak Penurunan Berat Badan'!B80=0,'Pelacak Penurunan Berat Badan'!B79+5,'Pelacak Penurunan Berat Badan'!B80))","v":"00:00:00"},{"$f":"'Pelacak Penurunan Berat Badan'!C80","v":0}]
[{"$f":"IF(('Pelacak Penurunan Berat Badan'!C81=0)*('Pelacak Penurunan Berat Badan'!C80=0),TRUE)","v":true},{"$f":"IF(A60,0,IF('Pelacak Penurunan Berat Badan'!B81=0,'Pelacak Penurunan Berat Badan'!B80+5,'Pelacak Penurunan Berat Badan'!B81))","v":"00:00:00"},{"$f":"'Pelacak Penurunan Berat Badan'!C81","v":0}]
[{"$f":"IF(('Pelacak Penurunan Berat Badan'!C82=0)*('Pelacak Penurunan Berat Badan'!C81=0),TRUE)","v":true},{"$f":"IF(A61,0,IF('Pelacak Penurunan Berat Badan'!B82=0,'Pelacak Penurunan Berat Badan'!B81+5,'Pelacak Penurunan Berat Badan'!B82))","v":"00:00:00"},{"$f":"'Pelacak Penurunan Berat Badan'!C82","v":0}]
[{"$f":"IF(('Pelacak Penurunan Berat Badan'!C83=0)*('Pelacak Penurunan Berat Badan'!C82=0),TRUE)","v":true},{"$f":"IF(A62,0,IF('Pelacak Penurunan Berat Badan'!B83=0,'Pelacak Penurunan Berat Badan'!B82+5,'Pelacak Penurunan Berat Badan'!B83))","v":"00:00:00"},{"$f":"'Pelacak Penurunan Berat Badan'!C83","v":0}]
[{"$f":"IF(('Pelacak Penurunan Berat Badan'!C84=0)*('Pelacak Penurunan Berat Badan'!C83=0),TRUE)","v":true},{"$f":"IF(A63,0,IF('Pelacak Penurunan Berat Badan'!B84=0,'Pelacak Penurunan Berat Badan'!B83+5,'Pelacak Penurunan Berat Badan'!B84))","v":"00:00:00"},{"$f":"'Pelacak Penurunan Berat Badan'!C84","v":0}]
[{"$f":"IF(('Pelacak Penurunan Berat Badan'!C85=0)*('Pelacak Penurunan Berat Badan'!C84=0),TRUE)","v":true},{"$f":"IF(A64,0,IF('Pelacak Penurunan Berat Badan'!B85=0,'Pelacak Penurunan Berat Badan'!B84+5,'Pelacak Penurunan Berat Badan'!B85))","v":"00:00:00"},{"$f":"'Pelacak Penurunan Berat Badan'!C85","v":0}]
[{"$f":"IF(('Pelacak Penurunan Berat Badan'!C86=0)*('Pelacak Penurunan Berat Badan'!C85=0),TRUE)","v":true},{"$f":"IF(A65,0,IF('Pelacak Penurunan Berat Badan'!B86=0,'Pelacak Penurunan Berat Badan'!B85+5,'Pelacak Penurunan Berat Badan'!B86))","v":"00:00:00"},{"$f":"'Pelacak Penurunan Berat Badan'!C86","v":0}]
[{"$f":"IF(('Pelacak Penurunan Berat Badan'!C87=0)*('Pelacak Penurunan Berat Badan'!C86=0),TRUE)","v":true},{"$f":"IF(A66,0,IF('Pelacak Penurunan Berat Badan'!B87=0,'Pelacak Penurunan Berat Badan'!B86+5,'Pelacak Penurunan Berat Badan'!B87))","v":"00:00:00"},{"$f":"'Pelacak Penurunan Berat Badan'!C87","v":0}]
[{"$f":"IF(('Pelacak Penurunan Berat Badan'!C88=0)*('Pelacak Penurunan Berat Badan'!C87=0),TRUE)","v":true},{"$f":"IF(A67,0,IF('Pelacak Penurunan Berat Badan'!B88=0,'Pelacak Penurunan Berat Badan'!B87+5,'Pelacak Penurunan Berat Badan'!B88))","v":"00:00:00"},{"$f":"'Pelacak Penurunan Berat Badan'!C88","v":0}]
[{"$f":"IF(('Pelacak Penurunan Berat Badan'!C89=0)*('Pelacak Penurunan Berat Badan'!C88=0),TRUE)","v":true},{"$f":"IF(A68,0,IF('Pelacak Penurunan Berat Badan'!B89=0,'Pelacak Penurunan Berat Badan'!B88+5,'Pelacak Penurunan Berat Badan'!B89))","v":"00:00:00"},{"$f":"'Pelacak Penurunan Berat Badan'!C89","v":0}]
[{"$f":"IF(('Pelacak Penurunan Berat Badan'!C90=0)*('Pelacak Penurunan Berat Badan'!C89=0),TRUE)","v":true},{"$f":"IF(A69,0,IF('Pelacak Penurunan Berat Badan'!B90=0,'Pelacak Penurunan Berat Badan'!B89+5,'Pelacak Penurunan Berat Badan'!B90))","v":"00:00:00"},{"$f":"'Pelacak Penurunan Berat Badan'!C90","v":0}]
[{"$f":"IF(('Pelacak Penurunan Berat Badan'!C91=0)*('Pelacak Penurunan Berat Badan'!C90=0),TRUE)","v":true},{"$f":"IF(A70,0,IF('Pelacak Penurunan Berat Badan'!B91=0,'Pelacak Penurunan Berat Badan'!B90+5,'Pelacak Penurunan Berat Badan'!B91))","v":"00:00:00"},{"$f":"'Pelacak Penurunan Berat Badan'!C91","v":0}]
[{"$f":"IF(('Pelacak Penurunan Berat Badan'!C92=0)*('Pelacak Penurunan Berat Badan'!C91=0),TRUE)","v":true},{"$f":"IF(A71,0,IF('Pelacak Penurunan Berat Badan'!B92=0,'Pelacak Penurunan Berat Badan'!B91+5,'Pelacak Penurunan Berat Badan'!B92))","v":"00:00:00"},{"$f":"'Pelacak Penurunan Berat Badan'!C92","v":0}]
[{"$f":"IF(('Pelacak Penurunan Berat Badan'!C93=0)*('Pelacak Penurunan Berat Badan'!C92=0),TRUE)","v":true},{"$f":"IF(A72,0,IF('Pelacak Penurunan Berat Badan'!B93=0,'Pelacak Penurunan Berat Badan'!B92+5,'Pelacak Penurunan Berat Badan'!B93))","v":"00:00:00"},{"$f":"'Pelacak Penurunan Berat Badan'!C93","v":0}]
[{"$f":"IF(('Pelacak Penurunan Berat Badan'!C94=0)*('Pelacak Penurunan Berat Badan'!C93=0),TRUE)","v":true},{"$f":"IF(A73,0,IF('Pelacak Penurunan Berat Badan'!B94=0,'Pelacak Penurunan Berat Badan'!B93+5,'Pelacak Penurunan Berat Badan'!B94))","v":"00:00:00"},{"$f":"'Pelacak Penurunan Berat Badan'!C94","v":0}]
[{"$f":"IF(('Pelacak Penurunan Berat Badan'!C95=0)*('Pelacak Penurunan Berat Badan'!C94=0),TRUE)","v":true},{"$f":"IF(A74,0,IF('Pelacak Penurunan Berat Badan'!B95=0,'Pelacak Penurunan Berat Badan'!B94+5,'Pelacak Penurunan Berat Badan'!B95))","v":"00:00:00"},{"$f":"'Pelacak Penurunan Berat Badan'!C95","v":0}]
[{"$f":"IF(('Pelacak Penurunan Berat Badan'!C96=0)*('Pelacak Penurunan Berat Badan'!C95=0),TRUE)","v":true},{"$f":"IF(A75,0,IF('Pelacak Penurunan Berat Badan'!B96=0,'Pelacak Penurunan Berat Badan'!B95+5,'Pelacak Penurunan Berat Badan'!B96))","v":"00:00:00"},{"$f":"'Pelacak Penurunan Berat Badan'!C96","v":0}]
[{"$f":"IF(('Pelacak Penurunan Berat Badan'!C97=0)*('Pelacak Penurunan Berat Badan'!C96=0),TRUE)","v":true},{"$f":"IF(A76,0,IF('Pelacak Penurunan Berat Badan'!B97=0,'Pelacak Penurunan Berat Badan'!B96+5,'Pelacak Penurunan Berat Badan'!B97))","v":"00:00:00"},{"$f":"'Pelacak Penurunan Berat Badan'!C97","v":0}]
[{"$f":"IF(('Pelacak Penurunan Berat Badan'!C98=0)*('Pelacak Penurunan Berat Badan'!C97=0),TRUE)","v":true},{"$f":"IF(A77,0,IF('Pelacak Penurunan Berat Badan'!B98=0,'Pelacak Penurunan Berat Badan'!B97+5,'Pelacak Penurunan Berat Badan'!B98))","v":"00:00:00"},{"$f":"'Pelacak Penurunan Berat Badan'!C98","v":0}]
[{"$f":"IF(('Pelacak Penurunan Berat Badan'!C99=0)*('Pelacak Penurunan Berat Badan'!C98=0),TRUE)","v":true},{"$f":"IF(A78,0,IF('Pelacak Penurunan Berat Badan'!B99=0,'Pelacak Penurunan Berat Badan'!B98+5,'Pelacak Penurunan Berat Badan'!B99))","v":"00:00:00"},{"$f":"'Pelacak Penurunan Berat Badan'!C99","v":0}]
[{"$f":"IF(('Pelacak Penurunan Berat Badan'!C100=0)*('Pelacak Penurunan Berat Badan'!C99=0),TRUE)","v":true},{"$f":"IF(A79,0,IF('Pelacak Penurunan Berat Badan'!B100=0,'Pelacak Penurunan Berat Badan'!B99+5,'Pelacak Penurunan Berat Badan'!B100))","v":"00:00:00"},{"$f":"'Pelacak Penurunan Berat Badan'!C100","v":0}]
[{"$f":"IF(('Pelacak Penurunan Berat Badan'!C101=0)*('Pelacak Penurunan Berat Badan'!C100=0),TRUE)","v":true},{"$f":"IF(A80,0,IF('Pelacak Penurunan Berat Badan'!B101=0,'Pelacak Penurunan Berat Badan'!B100+5,'Pelacak Penurunan Berat Badan'!B101))","v":"00:00:00"},{"$f":"'Pelacak Penurunan Berat Badan'!C101","v":0}]
[{"$f":"IF(('Pelacak Penurunan Berat Badan'!C102=0)*('Pelacak Penurunan Berat Badan'!C101=0),TRUE)","v":true},{"$f":"IF(A81,0,IF('Pelacak Penurunan Berat Badan'!B102=0,'Pelacak Penurunan Berat Badan'!B101+5,'Pelacak Penurunan Berat Badan'!B102))","v":"00:00:00"},{"$f":"'Pelacak Penurunan Berat Badan'!C102","v":0}]
[{"$f":"IF(('Pelacak Penurunan Berat Badan'!C103=0)*('Pelacak Penurunan Berat Badan'!C102=0),TRUE)","v":true},{"$f":"IF(A82,0,IF('Pelacak Penurunan Berat Badan'!B103=0,'Pelacak Penurunan Berat Badan'!B102+5,'Pelacak Penurunan Berat Badan'!B103))","v":"00:00:00"},{"$f":"'Pelacak Penurunan Berat Badan'!C103","v":0}]
[{"$f":"IF(('Pelacak Penurunan Berat Badan'!C104=0)*('Pelacak Penurunan Berat Badan'!C103=0),TRUE)","v":true},{"$f":"IF(A83,0,IF('Pelacak Penurunan Berat Badan'!B104=0,'Pelacak Penurunan Berat Badan'!B103+5,'Pelacak Penurunan Berat Badan'!B104))","v":"00:00:00"},{"$f":"'Pelacak Penurunan Berat Badan'!C104","v":0}]
[{"$f":"IF(('Pelacak Penurunan Berat Badan'!C105=0)*('Pelacak Penurunan Berat Badan'!C104=0),TRUE)","v":true},{"$f":"IF(A84,0,IF('Pelacak Penurunan Berat Badan'!B105=0,'Pelacak Penurunan Berat Badan'!B104+5,'Pelacak Penurunan Berat Badan'!B105))","v":"00:00:00"},{"$f":"'Pelacak Penurunan Berat Badan'!C105","v":0}]
[{"$f":"IF(('Pelacak Penurunan Berat Badan'!C106=0)*('Pelacak Penurunan Berat Badan'!C105=0),TRUE)","v":true},{"$f":"IF(A85,0,IF('Pelacak Penurunan Berat Badan'!B106=0,'Pelacak Penurunan Berat Badan'!B105+5,'Pelacak Penurunan Berat Badan'!B106))","v":"00:00:00"},{"$f":"'Pelacak Penurunan Berat Badan'!C106","v":0}]
[{"$f":"IF(('Pelacak Penurunan Berat Badan'!C107=0)*('Pelacak Penurunan Berat Badan'!C106=0),TRUE)","v":true},{"$f":"IF(A86,0,IF('Pelacak Penurunan Berat Badan'!B107=0,'Pelacak Penurunan Berat Badan'!B106+5,'Pelacak Penurunan Berat Badan'!B107))","v":"00:00:00"},{"$f":"'Pelacak Penurunan Berat Badan'!C107","v":0}]
[{"$f":"IF(('Pelacak Penurunan Berat Badan'!C108=0)*('Pelacak Penurunan Berat Badan'!C107=0),TRUE)","v":true},{"$f":"IF(A87,0,IF('Pelacak Penurunan Berat Badan'!B108=0,'Pelacak Penurunan Berat Badan'!B107+5,'Pelacak Penurunan Berat Badan'!B108))","v":"00:00:00"},{"$f":"'Pelacak Penurunan Berat Badan'!C108","v":0}]
[{"$f":"IF(('Pelacak Penurunan Berat Badan'!C109=0)*('Pelacak Penurunan Berat Badan'!C108=0),TRUE)","v":true},{"$f":"IF(A88,0,IF('Pelacak Penurunan Berat Badan'!B109=0,'Pelacak Penurunan Berat Badan'!B108+5,'Pelacak Penurunan Berat Badan'!B109))","v":"00:00:00"},{"$f":"'Pelacak Penurunan Berat Badan'!C109","v":0}]
[{"$f":"IF(('Pelacak Penurunan Berat Badan'!C110=0)*('Pelacak Penurunan Berat Badan'!C109=0),TRUE)","v":true},{"$f":"IF(A89,0,IF('Pelacak Penurunan Berat Badan'!B110=0,'Pelacak Penurunan Berat Badan'!B109+5,'Pelacak Penurunan Berat Badan'!B110))","v":"00:00:00"},{"$f":"'Pelacak Penurunan Berat Badan'!C110","v":0}]
[{"$f":"IF(('Pelacak Penurunan Berat Badan'!C111=0)*('Pelacak Penurunan Berat Badan'!C110=0),TRUE)","v":true},{"$f":"IF(A90,0,IF('Pelacak Penurunan Berat Badan'!B111=0,'Pelacak Penurunan Berat Badan'!B110+5,'Pelacak Penurunan Berat Badan'!B111))","v":"00:00:00"},{"$f":"'Pelacak Penurunan Berat Badan'!C111","v":0}]
[{"$f":"IF(('Pelacak Penurunan Berat Badan'!C112=0)*('Pelacak Penurunan Berat Badan'!C111=0),TRUE)","v":true},{"$f":"IF(A91,0,IF('Pelacak Penurunan Berat Badan'!B112=0,'Pelacak Penurunan Berat Badan'!B111+5,'Pelacak Penurunan Berat Badan'!B112))","v":"00:00:00"},{"$f":"'Pelacak Penurunan Berat Badan'!C112","v":0}]
[{"$f":"IF(('Pelacak Penurunan Berat Badan'!C113=0)*('Pelacak Penurunan Berat Badan'!C112=0),TRUE)","v":true},{"$f":"IF(A92,0,IF('Pelacak Penurunan Berat Badan'!B113=0,'Pelacak Penurunan Berat Badan'!B112+5,'Pelacak Penurunan Berat Badan'!B113))","v":"00:00:00"},{"$f":"'Pelacak Penurunan Berat Badan'!C113","v":0}]
[{"$f":"IF(('Pelacak Penurunan Berat Badan'!C114=0)*('Pelacak Penurunan Berat Badan'!C113=0),TRUE)","v":true},{"$f":"IF(A93,0,IF('Pelacak Penurunan Berat Badan'!B114=0,'Pelacak Penurunan Berat Badan'!B113+5,'Pelacak Penurunan Berat Badan'!B114))","v":"00:00:00"},{"$f":"'Pelacak Penurunan Berat Badan'!C114","v":0}]
[{"$f":"IF(('Pelacak Penurunan Berat Badan'!C115=0)*('Pelacak Penurunan Berat Badan'!C114=0),TRUE)","v":true},{"$f":"IF(A94,0,IF('Pelacak Penurunan Berat Badan'!B115=0,'Pelacak Penurunan Berat Badan'!B114+5,'Pelacak Penurunan Berat Badan'!B115))","v":"00:00:00"},{"$f":"'Pelacak Penurunan Berat Badan'!C115","v":0}]
[{"$f":"IF(('Pelacak Penurunan Berat Badan'!C116=0)*('Pelacak Penurunan Berat Badan'!C115=0),TRUE)","v":true},{"$f":"IF(A95,0,IF('Pelacak Penurunan Berat Badan'!B116=0,'Pelacak Penurunan Berat Badan'!B115+5,'Pelacak Penurunan Berat Badan'!B116))","v":"00:00:00"},{"$f":"'Pelacak Penurunan Berat Badan'!C116","v":0}]
[{"$f":"IF(('Pelacak Penurunan Berat Badan'!C117=0)*('Pelacak Penurunan Berat Badan'!C116=0),TRUE)","v":true},{"$f":"IF(A96,0,IF('Pelacak Penurunan Berat Badan'!B117=0,'Pelacak Penurunan Berat Badan'!B116+5,'Pelacak Penurunan Berat Badan'!B117))","v":"00:00:00"},{"$f":"'Pelacak Penurunan Berat Badan'!C117","v":0}]
[{"$f":"IF(('Pelacak Penurunan Berat Badan'!C118=0)*('Pelacak Penurunan Berat Badan'!C117=0),TRUE)","v":true},{"$f":"IF(A97,0,IF('Pelacak Penurunan Berat Badan'!B118=0,'Pelacak Penurunan Berat Badan'!B117+5,'Pelacak Penurunan Berat Badan'!B118))","v":"00:00:00"},{"$f":"'Pelacak Penurunan Berat Badan'!C118","v":0}]
[{"$f":"IF(('Pelacak Penurunan Berat Badan'!C119=0)*('Pelacak Penurunan Berat Badan'!C118=0),TRUE)","v":true},{"$f":"IF(A98,0,IF('Pelacak Penurunan Berat Badan'!B119=0,'Pelacak Penurunan Berat Badan'!B118+5,'Pelacak Penurunan Berat Badan'!B119))","v":"00:00:00"},{"$f":"'Pelacak Penurunan Berat Badan'!C119","v":0}]
[{"$f":"IF(('Pelacak Penurunan Berat Badan'!C120=0)*('Pelacak Penurunan Berat Badan'!C119=0),TRUE)","v":true},{"$f":"IF(A99,0,IF('Pelacak Penurunan Berat Badan'!B120=0,'Pelacak Penurunan Berat Badan'!B119+5,'Pelacak Penurunan Berat Badan'!B120))","v":"00:00:00"},{"$f":"'Pelacak Penurunan Berat Badan'!C120","v":0}]
[{"$f":"IF(('Pelacak Penurunan Berat Badan'!C121=0)*('Pelacak Penurunan Berat Badan'!C120=0),TRUE)","v":true},{"$f":"IF(A100,0,IF('Pelacak Penurunan Berat Badan'!B121=0,'Pelacak Penurunan Berat Badan'!B120+5,'Pelacak Penurunan Berat Badan'!B121))","v":"00:00:00"},{"$f":"'Pelacak Penurunan Berat Badan'!C121","v":0}]
[{"$f":"IF(('Pelacak Penurunan Berat Badan'!C122=0)*('Pelacak Penurunan Berat Badan'!C121=0),TRUE)","v":true},{"$f":"IF(A101,0,IF('Pelacak Penurunan Berat Badan'!B122=0,'Pelacak Penurunan Berat Badan'!B121+5,'Pelacak Penurunan Berat Badan'!B122))","v":"00:00:00"},{"$f":"'Pelacak Penurunan Berat Badan'!C122","v":0}]
[{"$f":"IF(('Pelacak Penurunan Berat Badan'!C123=0)*('Pelacak Penurunan Berat Badan'!C122=0),TRUE)","v":true},{"$f":"IF(A102,0,IF('Pelacak Penurunan Berat Badan'!B123=0,'Pelacak Penurunan Berat Badan'!B122+5,'Pelacak Penurunan Berat Badan'!B123))","v":"00:00:00"},{"$f":"'Pelacak Penurunan Berat Badan'!C123","v":0}]
[{"$f":"IF(('Pelacak Penurunan Berat Badan'!C124=0)*('Pelacak Penurunan Berat Badan'!C123=0),TRUE)","v":true},{"$f":"IF(A103,0,IF('Pelacak Penurunan Berat Badan'!B124=0,'Pelacak Penurunan Berat Badan'!B123+5,'Pelacak Penurunan Berat Badan'!B124))","v":"00:00:00"},{"$f":"'Pelacak Penurunan Berat Badan'!C124","v":0}]
[{"$f":"IF(('Pelacak Penurunan Berat Badan'!C125=0)*('Pelacak Penurunan Berat Badan'!C124=0),TRUE)","v":true},{"$f":"IF(A104,0,IF('Pelacak Penurunan Berat Badan'!B125=0,'Pelacak Penurunan Berat Badan'!B124+5,'Pelacak Penurunan Berat Badan'!B125))","v":"00:00:00"},{"$f":"'Pelacak Penurunan Berat Badan'!C125","v":0}]
[{"$f":"IF(('Pelacak Penurunan Berat Badan'!C126=0)*('Pelacak Penurunan Berat Badan'!C125=0),TRUE)","v":true},{"$f":"IF(A105,0,IF('Pelacak Penurunan Berat Badan'!B126=0,'Pelacak Penurunan Berat Badan'!B125+5,'Pelacak Penurunan Berat Badan'!B126))","v":"00:00:00"},{"$f":"'Pelacak Penurunan Berat Badan'!C126","v":0}]
[{"$f":"IF(('Pelacak Penurunan Berat Badan'!C127=0)*('Pelacak Penurunan Berat Badan'!C126=0),TRUE)","v":true},{"$f":"IF(A106,0,IF('Pelacak Penurunan Berat Badan'!B127=0,'Pelacak Penurunan Berat Badan'!B126+5,'Pelacak Penurunan Berat Badan'!B127))","v":"00:00:00"},{"$f":"'Pelacak Penurunan Berat Badan'!C127","v":0}]
[{"$f":"IF(('Pelacak Penurunan Berat Badan'!C128=0)*('Pelacak Penurunan Berat Badan'!C127=0),TRUE)","v":true},{"$f":"IF(A107,0,IF('Pelacak Penurunan Berat Badan'!B128=0,'Pelacak Penurunan Berat Badan'!B127+5,'Pelacak Penurunan Berat Badan'!B128))","v":"00:00:00"},{"$f":"'Pelacak Penurunan Berat Badan'!C128","v":0}]
[{"$f":"IF(('Pelacak Penurunan Berat Badan'!C129=0)*('Pelacak Penurunan Berat Badan'!C128=0),TRUE)","v":true},{"$f":"IF(A108,0,IF('Pelacak Penurunan Berat Badan'!B129=0,'Pelacak Penurunan Berat Badan'!B128+5,'Pelacak Penurunan Berat Badan'!B129))","v":"00:00:00"},{"$f":"'Pelacak Penurunan Berat Badan'!C129","v":0}]